lending/lending_fUSD_20240207
["ID","MTS","AMOUNT","RATE_DAILY","PERIOD"]
[313422559,1707330554492,-500.0,0.00047397,31]
[313422560,1707330554522,-500.0,0.00047397,31]
[313422561,1707330554550,-882.86,0.00047397,31]
[313422562,1707330554577,-500.0,0.00047397,31]
[313422563,1707330554604,-500.0,0.00047397,31]
[313422564,1707330554631,-500.0,0.00047397,31]
[313422565,1707330554659,-500.0,0.00047397,31]
[313422566,1707330554687,-882.42,0.00047397,31]
[313422567,1707330554720,-1222.05,0.00047397,31]
[313422568,1707330554749,-500.0,0.00047397,31]
[313422569,1707330554777,-1227.19,0.00047397,31]
[313422570,1707330554804,-500.0,0.00047397,31]
[313422571,1707330554832,-500.0,0.00047452,30]
[313422572,1707330554860,-2695.64919096,0.00047478,42]
[313422573,1707330554888,-2089.01480162,0.000475,30]
[313422574,1707330554917,-500.0,0.00047671,40]
[313422575,1707330554946,-150.0,0.00047682,30]
[313422576,1707330554973,-150.0,0.00047682,30]
[313422577,1707330555001,-335529.40863095,0.0004769,30]
[313422672,1707330580081,-1322.14,0.00047808,120]
[313422673,1707330580116,-500.0,0.00047808,120]
[313422674,1707330580164,-1115.66,0.00047945,120]
[313422675,1707330580198,-1115.66,0.00047945,120]
[313422676,1707330580226,-1115.66,0.00047945,120]
[313422677,1707330580254,-1115.66,0.00047945,120]
[313422678,1707330580283,-1115.66,0.00047945,120]
[313422679,1707330580315,-1115.66,0.00047945,120]
[313422680,1707330580342,-1115.66,0.00047945,120]
[313422681,1707330580372,-1115.66,0.00047945,120]
[313422682,1707330580402,-1115.66,0.00047945,120]
[313422683,1707330580429,-1115.66,0.00047945,120]
[313422684,1707330580457,-1115.66,0.00047945,120]
[313422685,1707330580487,-1115.66,0.00047945,120]
[313422686,1707330580514,-1115.66,0.00047945,120]
[313422687,1707330580540,-1115.66,0.00047945,120]
[313422688,1707330580792,-1115.66,0.00047945,120]
[313422689,1707330580821,-1115.66,0.00047945,120]
[313422690,1707330580848,-1115.66,0.00047945,120]
[313422691,1707330580875,-1115.66,0.00047945,120]
[313422692,1707330580902,-1115.66,0.00047945,120]
[313422693,1707330580929,-1115.66,0.00047945,120]
[313422694,1707330580955,-1115.66,0.00047945,120]
[313422695,1707330580983,-1115.66,0.00047945,120]
[313422696,1707330581011,-1115.66,0.00047945,120]
[313422697,1707330581039,-1115.89971758,0.00047945,120]
[313422698,1707330581070,-100000.0,0.00048,38]
[313422699,1707330581097,-300.0,0.00048,48]
[313422700,1707330581125,-300.0,0.00048,49]
[313422701,1707330581152,-2000.0,0.00048,120]
[313422702,1707330581180,-300.0,0.00048,73]
[313422703,1707330581207,-167.0,0.00048,120]
[313422704,1707330581236,-7028.0,0.00048,60]
[313422705,1707330581263,-3779.0,0.00048,120]
[313422706,1707330581290,-1710.18201644,0.00048,80]
[313422707,1707330581319,-527.3384245,0.00048,120]
[313422708,1707330581347,-1000.0,0.00048,57]
[313422709,1707330581378,-44215.12792078,0.00048,50]
[313422710,1707330581408,-5578.369042,0.00048,52]
[313422711,1707330581449,-1322.14,0.00048219,120]
[313422712,1707330581481,-500.0,0.00048219,120]
[313422713,1707330581519,-500.0,0.00048219,45]
[313422714,1707330581554,-161.09185122,0.000485,120]
[313422715,1707330581583,-536313.27,0.000485,120]
[313422716,1707330581610,-37461.79428964,0.0004851,90]
[313422717,1707330581648,-1322.14,0.0004863,120]
[313422718,1707330581679,-500.0,0.0004863,120]
[313422719,1707330581721,-1359.0,0.000487,117]
[313422720,1707330581749,-650.0,0.00048767,120]
[313422721,1707330581776,-650.0,0.00048767,120]
[313422722,1707330581803,-650.0,0.00048767,120]
[313422723,1707330581830,-650.0,0.00048767,120]
[313422724,1707330581857,-650.0,0.00048767,120]
[313422725,1707330581884,-650.0,0.00048767,120]
[313422726,1707330581911,-650.0,0.00048767,120]
[313422727,1707330581938,-381.98419876,0.00048767,120]
[313422728,1707330581965,-500.0,0.00048767,50]
[313422729,1707330581992,-205.668,0.0004895,120]
[313422730,1707330582020,-205.668,0.0004895,120]
[313422731,1707330582048,-17527.22954025,0.00048979,120]
[313422732,1707330582080,-100000.0,0.00049,39]
[313422733,1707330582110,-300.0,0.00049,50]
[313422734,1707330582137,-300.0,0.00049,49]
[313422735,1707330582165,-2036.99189763,0.00049,120]
[313422736,1707330582192,-424.89878707,0.00049,120]
[313422737,1707330582220,-300.0,0.00049,77]
[313422738,1707330582247,-1118.0,0.00049,120]
[313422739,1707330582275,-1000.0,0.00049,59]
[313422740,1707330582305,-600000.0,0.00049,120]
[313422741,1707330582338,-3000.0,0.00049,103]
[313422742,1707330582365,-3246.3084466,0.00049,120]
[313422743,1707330582395,-414.93881668,0.00049,120]
[313422744,1707330582423,-3000.0,0.00049,90]
[313422745,1707330582451,-395.34,0.00049,120]
[313422746,1707330582479,-12000.0,0.00049,120]
[313422747,1707330582522,-1322.14,0.00049041,120]
[313422748,1707330582552,-320.45615503,0.00049041,120]
[313422749,1707330582593,-12000.0,0.0004906,120]
[313422750,1707330582621,-12000.0,0.0004912,120]
[313422751,1707330582648,-12000.0,0.0004918,120]
[313422752,1707330582675,-12000.0,0.0004924,120]
[313422753,1707330582702,-12000.0,0.000493,120]
[313422754,1707330582730,-500.0,0.00049315,40]
[313422755,1707330582757,-500.0,0.00049315,40]
[313422756,1707330582783,-217.27997372,0.00049315,40]
[313422757,1707330582810,-500.0,0.00049315,40]
[313422758,1707330582836,-500.0,0.00049315,40]
[313422759,1707330582863,-500.0,0.00049315,40]
[313422760,1707330582888,-500.0,0.00049315,40]
[313422761,1707330582917,-1000.0,0.00049315,120]
[313422762,1707330582943,-518.92497102,0.00049315,120]
[313422763,1707330582970,-500.0,0.00049315,120]
[313422764,1707330582996,-500.0,0.00049315,120]
[313422765,1707330583023,-489.74522922,0.00049315,120]
[313422766,1707330583051,-500.0,0.00049315,55]
[313422767,1707330583079,-5000.0,0.00049315,40]
[313422768,1707330583105,-182.282,0.00049315,120]
[313422769,1707330583132,-200.0,0.00049315,60]
[313422770,1707330583160,-7103.67,0.0004936,120]
[313422771,1707330583197,-1322.14,0.00049452,120]
[313422772,1707330583239,-250212.8522614,0.000495,45]
[313422773,1707330583269,-600000.0,0.000495,120]
[313422774,1707330583297,-4938.33358617,0.000495,120]
[313422775,1707330583327,-1387.8532532,0.00049589,45]
[313422776,1707330583356,-499.14245395,0.000496,120]
[313422777,1707330583388,-10000.0,0.0004968,120]
[313422778,1707330583416,-11601.1469962,0.0004968,120]
[313422779,1707330583443,-1175.60776345,0.0004968,120]
[313422780,1707330583473,-6691.9040036,0.0004969,120]
[313422781,1707330583502,-4071.20834976,0.000497,120]
[313422782,1707330583531,-5000.0,0.000497,120]
[313422783,1707330583558,-276.60976107,0.000497,35]
[313422784,1707330583586,-5000.0,0.0004972,120]
[313422785,1707330583613,-5000.0,0.0004972,120]
[313422786,1707330583640,-500.0,0.00049726,40]
[313422787,1707330583668,-500.0,0.00049726,40]
[313422788,1707330583900,-500.0,0.00049726,40]
[313422789,1707330583930,-496.24072129,0.000498,120]
[313422790,1707330583958,-33311.06785244,0.000498,90]
[313422791,1707330583985,-299.06216018,0.000498,120]
[313422792,1707330584011,-500.0,0.000498,120]
[313422793,1707330584039,-500.0,0.000498,120]
[313422794,1707330584066,-500.0,0.000498,120]
[313422795,1707330584092,-500.0,0.000498,120]
[313422796,1707330584118,-500.0,0.000498,120]
[313422797,1707330584146,-500.0,0.000498,120]
[313422798,1707330584172,-500.0,0.000498,120]
[313422799,1707330584199,-500.0,0.000498,120]
[313422800,1707330584227,-989.0,0.000498,120]
[313422801,1707330584253,-500.0,0.000498,120]
[313422802,1707330584279,-500.0,0.000498,120]
[313422803,1707330584309,-500.0,0.000498,120]
[313422804,1707330584336,-500.0,0.000498,120]
[313422805,1707330584363,-500.0,0.000498,120]
[313422806,1707330584391,-500.0,0.000498,120]
[313422807,1707330584418,-500.0,0.000498,120]
[313422808,1707330584445,-993.0,0.000498,120]
[313422809,1707330584472,-5000.0,0.000498,120]
[313422810,1707330584499,-5000.0,0.000498,120]
[313422811,1707330584526,-398.0,0.000498,60]
[313422812,1707330584552,-10000.0,0.000498,120]
[313422813,1707330584587,-1322.14,0.00049863,120]
[313422814,1707330584624,-334.57180347,0.00049863,60]
[313422815,1707330584656,-152.85800901,0.00049889,120]
[313422816,1707330584683,-10987.53275614,0.00049899,90]
[313422817,1707330584710,-2133.78156085,0.000499,120]
[313422818,1707330584738,-1000.0,0.000499,120]
[313422819,1707330584765,-1000.0,0.000499,120]
[313422820,1707330584791,-1000.0,0.000499,120]
[313422821,1707330584818,-1000.0,0.000499,120]
[313422822,1707330584846,-1000.0,0.000499,120]
[313422823,1707330584872,-1000.0,0.000499,120]
[313422824,1707330584899,-1000.0,0.000499,120]
[313422825,1707330584926,-1000.0,0.000499,120]
[313422826,1707330584952,-1000.0,0.000499,120]
[313422827,1707330584980,-1000.0,0.000499,120]
[313422828,1707330585008,-49494.65683564,0.00049998,120]
[313422829,1707330585034,-22012.38908135,0.00049999,60]
[313422830,1707330585064,-100000.0,0.0005,40]
[313422831,1707330585094,-224194.70151269,0.0005,120]
[313422832,1707330587667,-275805.29848731,0.0005,120]
[313422833,1707330587700,-500000.0,0.0005,120]
[313422834,1707330587729,-500000.0,0.0005,120]
[313422835,1707330587755,-1000.0,0.0005,120]
[313422836,1707330587782,-24300.0,0.0005,40]
[313422837,1707330587809,-300.0,0.0005,50]
[313422838,1707330587838,-500000.0,0.0005,120]
[313422839,1707330587865,-2000.0,0.0005,120]
[313422840,1707330587891,-3051.05468208,0.0005,60]
[313422841,1707330587918,-1241.50171837,0.0005,60]
[313422842,1707330587943,-986.21665341,0.0005,120]
[313422843,1707330587969,-227.0,0.0005,120]
[313422844,1707330587995,-332.26223187,0.0005,120]
[313422845,1707330588022,-10000.0,0.0005,90]
[313422846,1707330588048,-300.0,0.0005,45]
[313422847,1707330588074,-300.0,0.0005,54]
[313422848,1707330588100,-300.0,0.0005,60]
[313422849,1707330588128,-300.0,0.0005,69]
[313422850,1707330588155,-300.0,0.0005,72]
[313422851,1707330588182,-300.0,0.0005,81]
[313422852,1707330588210,-300.0,0.0005,99]
[313422853,1707330588236,-300.0,0.0005,108]
[313422854,1707330588264,-300.0,0.0005,111]
[313422855,1707330588290,-300.0,0.0005,120]
[313422856,1707330588319,-39559.78228368,0.0005,120]
[313422857,1707330588359,-500.0,0.0005,120]
[313422858,1707330588392,-500.0,0.0005,120]
[313422859,1707330588421,-500.0,0.0005,120]
[313422860,1707330588450,-500.0,0.0005,120]
[313422861,1707330588481,-500.0,0.0005,120]
[313422862,1707330588510,-500.0,0.0005,120]
[313422863,1707330588538,-510.85,0.0005,120]
[313422864,1707330588567,-10022.51478428,0.0005,120]
[313422865,1707330588596,-1000.0,0.0005,61]
[313422866,1707330588623,-150.51776448,0.0005,120]
[313422867,1707330588650,-5050.03401845,0.0005,120]
[313422868,1707330588678,-300.0,0.0005,81]
[313422869,1707330588705,-161.89658239,0.0005,120]
[313422870,1707330588733,-726.0,0.0005,120]
[313422871,1707330588761,-161.16499211,0.0005,45]
[313422872,1707330588791,-500000.0,0.0005,120]
[313422873,1707330588820,-133000.0,0.0005,120]
[313422874,1707330588851,-484113.90580157,0.0005,120]
[313422875,1707330595682,-1119.55,0.00049,120]
[313422876,1707330595743,-2350.34358762,0.00049188,120]
[313422877,1707330595807,-175.72154273,0.000495,120]
[313422878,1707330595868,-15886.09419843,0.0005,120]
[313422879,1707330595899,-500000.0,0.0005,120]
[313422880,1707330595929,-158361.83,0.0005,120]
[313422881,1707330595958,-2000.0,0.0005,60]
[313422882,1707330595987,-570000.0,0.0005,120]
[313422883,1707330596015,-25210.71954216,0.0005,90]
[313422884,1707330596043,-371.79599133,0.0005,120]
[313422885,1707330596072,-4386.0,0.0005,120]
[313422886,1707330596103,-10881.30792469,0.0005,120]
[313422887,1707330596135,-2000.0,0.0005,72]
[313422888,1707330596170,-1121.596152,0.0005,120]
[313422889,1707330596205,-584.81986741,0.0005,120]
[313422890,1707330596240,-10000.0,0.0005,120]
[313422891,1707330596279,-300.0,0.0005,51]
[313422892,1707330596326,-652.3436953,0.0005,60]
[313422893,1707330596368,-183.26024215,0.00050007,60]
[313422894,1707330596409,-156.81965112,0.00050009,60]
[313422895,1707330596454,-155.06507666,0.00050042,60]
[313422896,1707330596495,-157.81366968,0.00050065,60]
[313422897,1707330596533,-197.68337225,0.00050074,60]
[313422898,1707330596574,-156.81965112,0.00050078,60]
[313422899,1707330596609,-207.98042283,0.0005008,40]
[313422900,1707330596643,-206.85906662,0.00050083,60]
[313422901,1707330596676,-318.86752805,0.00050087,60]
[313422902,1707330596707,-10000.0,0.000501,120]
[313422903,1707330596737,-157.77841164,0.00050104,60]
[313422904,1707330596769,-267.47500574,0.00050115,60]
[313422905,1707330596799,-500.0,0.00050136,40]
[313422906,1707330596833,-500.0,0.00050136,40]
[313422907,1707330596863,-500.0,0.00050136,40]
[313422908,1707330596892,-172.70752235,0.00050137,60]
[313422909,1707330596922,-318.86752805,0.00050138,60]
[313422910,1707330596952,-267.47500574,0.00050141,60]
[313422911,1707330596981,-267.47500574,0.00050142,60]
[313422912,1707330597011,-153.05272113,0.00050173,45]
[313422913,1707330597039,-166.86337743,0.00050175,60]
[313422914,1707330597068,-166.66666668,0.00050181,60]
[313422915,1707330597097,-267.47500574,0.00050187,60]
[313422916,1707330597126,-157.77841164,0.00050188,60]
[313422917,1707330597157,-500000.0,0.000502,120]
[313422918,1707330597186,-8290.0,0.000502,120]
[313422919,1707330597214,-971.07141385,0.000502,120]
[313422920,1707330597243,-971.07141385,0.000502,120]
[313422921,1707330597272,-971.07141385,0.000502,120]
[313422922,1707330597301,-971.07141385,0.000502,120]
[313422923,1707330597339,-166.86337743,0.000502,60]
[313422924,1707330597372,-318.86752805,0.00050215,60]
[313422925,1707330597403,-267.47500574,0.00050229,60]
[313422926,1707330597456,-1322.14,0.00050273,120]
[313422927,1707330597507,-162.84905589,0.00050288,60]
[313422928,1707330597537,-166.66666666,0.00050292,60]
[313422929,1707330597570,-500000.0,0.000503,120]
[313422930,1707330597600,-541.89442572,0.000503,33]
[313422931,1707330597630,-162.84905589,0.00050301,60]
[313422932,1707330597661,-267.47500574,0.00050307,60]
[313422933,1707330597691,-157.81366968,0.00050309,60]
[313422934,1707330597720,-172.67036477,0.00050319,60]
[313422935,1707330597748,-166.66666666,0.00050331,60]
[313422936,1707330597779,-267.47500574,0.00050345,60]
[313422937,1707330597809,-267.47500574,0.00050347,60]
[313422938,1707330597838,-172.70752235,0.0005035,60]
[313422939,1707330597868,-500.0,0.00050369,40]
[313422940,1707330597898,-151.80662781,0.00050386,60]
[313422941,1707330597929,-500000.0,0.000504,120]
[313422942,1707330597956,-2085.31127778,0.000504,120]
[313422943,1707330597985,-156.81965112,0.00050409,60]
[313422944,1707330598013,-151.80662781,0.00050436,60]
[313422945,1707330598042,-156.81965112,0.0005048,60]
[313422946,1707330598073,-157.81366968,0.00050481,60]
[313422947,1707330598102,-155.06507666,0.00050483,60]
[313422948,1707330598130,-157.81366968,0.00050488,60]
[313422949,1707330598162,-156.81965112,0.00050489,60]
[313422950,1707330598192,-267.47500574,0.00050497,60]
[313422951,1707330598222,-151.80662781,0.00050498,60]
[313422952,1707330598251,-166.86337743,0.00050499,60]
[313422953,1707330598283,-157820.69923075,0.000505,120]
[313422954,1707330602039,-342179.30076925,0.000505,120]
[313422955,1707330602069,-318.86752805,0.00050504,60]
[313422956,1707330602100,-173.80604787,0.00050512,60]
[313422957,1707330602129,-318.86752805,0.00050523,60]
[313422958,1707330602159,-151.80662781,0.00050539,60]
[313422959,1707330602187,-500.0,0.00050547,40]
[313422960,1707330602220,-525.05,0.00050547,40]
[313422961,1707330602249,-502.92,0.00050547,40]
[313422962,1707330602278,-166.82930898,0.00050552,60]
[313422963,1707330602310,-205.0,0.00050555,36]
[313422964,1707330602344,-169.92888105,0.00050555,60]
[313422965,1707330602376,-166.86337743,0.00050565,60]
[313422966,1707330602409,-398.0,0.000506,60]
[313422967,1707330602439,-166.66666666,0.00050616,60]
[313422968,1707330602470,-318.86752805,0.00050642,60]
[313422969,1707330602501,-155.60010927,0.00050644,60]
[313422970,1707330602532,-166.543546,0.00050649,60]
[313422971,1707330602564,-318.86752805,0.0005068,60]
[313422972,1707330602599,-1322.14,0.00050684,120]
[313422973,1707330602642,-267.47500574,0.0005072,60]
[313422974,1707330602669,-3371.64057925,0.00050747,120]
[313422975,1707330602699,-318.86752805,0.00050807,60]
[313422976,1707330602726,-166.66666666,0.00050823,60]
[313422977,1707330602758,-267.47500574,0.00050827,60]
[313422978,1707330602788,-10258.03437806,0.000509,120]
[313422979,1707330602820,-166.86337743,0.00050912,60]
[313422980,1707330602850,-157.81366968,0.0005093,60]
[313422981,1707330602882,-206.85906662,0.00050939,60]
[313422982,1707330602912,-151.80662781,0.00050953,60]
[313422983,1707330602942,-500.0,0.00050958,40]
[313422984,1707330602971,-170.00665772,0.00050969,60]
[313422985,1707330602999,-1738.0,0.0005097,120]
[313422986,1707330603027,-1738.0,0.0005097,120]
[313422987,1707330603056,-198.55,0.0005098,120]
[313422988,1707330603086,-1738.0,0.0005098,120]
[313422989,1707330603113,-1738.0,0.0005098,120]
[313422990,1707330603142,-1738.0,0.0005098,120]
[313422991,1707330603171,-1746.09,0.0005098,120]
[313422992,1707330603201,-200.0,0.00050987,55]
[313422993,1707330603230,-200.0,0.00050987,53]
[313422994,1707330603260,-200.0,0.00050987,51]
[313422995,1707330603289,-200.0,0.00050987,57]
[313422996,1707330603319,-156.55843743,0.00050987,60]
[313422997,1707330603353,-197.49,0.0005099,120]
[313422998,1707330603383,-150.5,0.0005099,120]
[313422999,1707330603412,-151.89,0.0005099,120]
[313423000,1707330603442,-1738.0,0.0005099,120]
[313423001,1707330603470,-1738.0,0.0005099,120]
[313423002,1707330603502,-1738.0,0.0005099,120]
[313423003,1707330603531,-1738.0,0.0005099,120]
[313423004,1707330603561,-157.81366968,0.00050999,60]
[313423005,1707330603593,-100000.0,0.00051,41]
[313423006,1707330603622,-157.86896674,0.00051,120]
[313423007,1707330603653,-500000.0,0.00051,120]
[313423008,1707330603683,-1000.0,0.00051,120]
[313423009,1707330603713,-300.0,0.00051,51]
[313423010,1707330603744,-21929.03418214,0.00051,120]
[313423011,1707330603772,-181.0,0.00051,120]
[313423012,1707330603803,-374.0,0.00051,120]
[313423013,1707330603831,-200.27,0.00051,120]
[313423014,1707330603860,-1000.0,0.00051,63]
[313423015,1707330603891,-300.0,0.00051,85]
[313423016,1707330603920,-9000.0,0.00051,120]
[313423017,1707330603948,-1000.0,0.00051,60]
[313423018,1707330603975,-169.25954248,0.00051,120]
[313423019,1707330604004,-640.57197659,0.00051,60]
[313423020,1707330604033,-651.0,0.00051,60]
[313423021,1707330604060,-845.19597713,0.00051,60]
[313423022,1707330604092,-923.03215631,0.00051,60]
[313423023,1707330604316,-735.22865774,0.00051,60]
[313423024,1707330604396,-166.66666666,0.00051008,60]
[313423025,1707330604430,-156.81965112,0.00051013,60]
[313423026,1707330604461,-156.81965112,0.00051015,60]
[313423027,1707330604493,-318.86752805,0.00051018,60]
[313423028,1707330604524,-318.86752805,0.00051022,60]
[313423029,1707330604555,-318.86752805,0.00051032,60]
[313423030,1707330604588,-172.67036477,0.00051072,60]
[313423031,1707330604618,-2000.0,0.00051091,60]
[313423032,1707330604651,-1322.14,0.00051095,120]
[313423033,1707330604690,-136804.77316402,0.000511,60]
[313423034,1707330604718,-2000.0,0.00051108,60]
[313423035,1707330604747,-318.86752805,0.00051125,60]
[313423036,1707330604777,-267.47500574,0.00051138,60]
[313423037,1707330604809,-267.47500574,0.00051152,60]
[313423038,1707330604839,-267.47500574,0.00051176,60]
[313423039,1707330604869,-267.47500574,0.00051193,60]
[313423040,1707330604897,-394.21,0.00051198,60]
[313423041,1707330604929,-1875.05772587,0.000512,120]
[313423042,1707330604962,-166.86337743,0.00051207,60]
[313423043,1707330604994,-318.86752805,0.00051208,60]
[313423044,1707330605024,-157.81366968,0.00051213,60]
[313423045,1707330605055,-157.81366968,0.00051226,60]
[313423046,1707330605086,-318.86752805,0.00051227,60]
[313423047,1707330605117,-500000.0,0.0005125,120]
[313423048,1707330605146,-171.70484046,0.00051265,60]
[313423049,1707330605176,-157.81366968,0.00051266,60]
[313423050,1707330605207,-318.86752805,0.00051305,60]
[313423051,1707330605237,-1598.16,0.00051308,120]
[313423052,1707330605268,-267.47500574,0.00051312,60]
[313423053,1707330605301,-151.80662781,0.00051323,60]
[313423054,1707330605352,-166.66666668,0.00051334,60]
[313423055,1707330605385,-157.77841166,0.00051337,60]
[313423056,1707330605417,-171.70484046,0.00051352,60]
[313423057,1707330605450,-157.81366968,0.00051366,60]
[313423058,1707330605483,-318.86752805,0.00051388,60]
[313423059,1707330605513,-14961.32332548,0.000514,120]
[313423060,1707330605543,-5791.98136748,0.000514,120]
[313423061,1707330605574,-398.0,0.000514,60]
[313423062,1707330605605,-165.0,0.000514,60]
[313423063,1707330605637,-161.11394635,0.00051402,60]
[313423064,1707330605668,-267.47500574,0.00051419,60]
[313423065,1707330605700,-267.47500574,0.0005143,60]
[313423066,1707330605732,-267.47500574,0.00051457,60]
[313423067,1707330605764,-318.86752805,0.00051467,60]
[313423068,1707330605795,-318.86752805,0.00051474,60]
[313423069,1707330605829,-196.0,0.0005149,120]
[313423070,1707330605862,-500000.0,0.000515,120]
[313423071,1707330605892,-2258.21516162,0.000515,60]
[313423072,1707330605923,-180.16,0.000515,45]
[313423073,1707330605956,-3000.0,0.000515,45]
[313423074,1707330605993,-3000.0,0.000515,45]
[313423075,1707330606033,-3000.0,0.000515,45]
[313423076,1707330606068,-207.76,0.000515,120]
[313423077,1707330606102,-400.87,0.000515,60]
[313423078,1707330606133,-3000.0,0.000515,45]
[313423079,1707330606165,-3000.0,0.000515,45]
[313423080,1707330606202,-1322.14,0.00051506,120]
[313423081,1707330606249,-186.08214148,0.00051507,120]
[313423082,1707330606282,-318.86752805,0.0005151,60]
[313423083,1707330606317,-315.18182175,0.00051535,120]
[313423084,1707330606350,-402.81579047,0.00051539,60]
[313423085,1707330606384,-723.63129971,0.00051539,60]
[313423086,1707330606416,-151.80662781,0.00051542,60]
[313423087,1707330606449,-318.86752805,0.00051552,60]
[313423088,1707330606483,-267.47500574,0.00051569,60]
[313423089,1707330606516,-151.80662781,0.00051573,60]
[313423090,1707330606547,-156.81965112,0.00051575,60]
[313423091,1707330606577,-172.70752235,0.00051588,60]
[313423092,1707330606607,-6022.0,0.0005159,120]
[313423093,1707330606637,-170.64548448,0.00051593,60]
[313423094,1707330606669,-151.80662781,0.00051622,60]
[313423095,1707330606705,-157.81366968,0.00051635,60]
[313423096,1707330606739,-267.47500582,0.00051638,60]
[313423097,1707330606771,-166.6666667,0.00051641,60]
[313423098,1707330606803,-318.86752805,0.00051664,60]
[313423099,1707330606835,-318.86752805,0.00051693,60]
[313423100,1707330606865,-157.81366968,0.00051694,60]
[313423101,1707330606896,-156.81965112,0.00051705,60]
[313423102,1707330606925,-151.80662781,0.00051714,60]
[313423103,1707330606955,-157.81366968,0.00051733,60]
[313423104,1707330606984,-172.70752235,0.00051737,60]
[313423105,1707330607013,-318.86752805,0.00051744,60]
[313423106,1707330607043,-155.06507668,0.00051746,60]
[313423107,1707330607072,-151.80662781,0.00051756,60]
[313423108,1707330607100,-151.80662782,0.0005178,60]
[313423109,1707330607130,-2990.9,0.00051788,117]
[313423110,1707330607163,-239.0,0.000518,120]
[313423111,1707330607193,-36250.95277525,0.000518,60]
[313423112,1707330607224,-1000.0,0.000518,120]
[313423113,1707330607254,-1000.0,0.000518,120]
[313423114,1707330607284,-1000.0,0.000518,120]
[313423115,1707330607313,-1000.0,0.000518,120]
[313423116,1707330607345,-1000.0,0.000518,120]
[313423117,1707330607375,-318.86752805,0.00051805,60]
[313423118,1707330607403,-172.70752236,0.00051827,60]
[313423119,1707330607433,-173.80604788,0.00051835,60]
[313423120,1707330607464,-156.81965116,0.00051842,60]
[313423121,1707330607494,-166.86337745,0.0005185,60]
[313423122,1707330607523,-157.81366968,0.00051861,60]
[313423123,1707330607553,-174.26977305,0.00051865,60]
[313423124,1707330607584,-318.86752805,0.00051876,60]
[313423128,1707330607866,-47964.61864403,0.000519,60]
[313423129,1707330607895,-6463.3225853,0.000519,45]
[313423130,1707330607923,-4385.96435101,0.000519,45]
[313423131,1707330607954,-1322.14,0.00051917,120]
[313423132,1707330607991,-318.86752805,0.00051918,60]
[313423133,1707330608021,-157.8136698,0.0005192,60]
[313423134,1707330608048,-166.24019652,0.00051932,60]
[313423135,1707330608077,-318.86752805,0.00051939,60]
[313423136,1707330608105,-233.16932759,0.0005195,120]
[313423137,1707330608133,-662760.49387114,0.00051969,120]
[313423144,1707330632134,-311.43526537,0.00022542,2]
[313423145,1707330632144,-1496.69185114,0.00022545,2]
[313423146,1707330632157,-363.28872069,0.00022545,2]
[313423147,1707330632167,-1041.04719538,0.00022545,2]
[313423148,1707330632177,-155.0,0.00022545,2]
[313423149,1707330632186,-150.0,0.00022568,2]
[313423150,1707330632196,-417.19846673,0.00022569,2]
[313423151,1707330632205,-33493.79402277,0.00022688,2]
[313423152,1707330632214,-206.7629,0.00022689,2]
[313423153,1707330632225,-54160.2048,0.00022689,2]
[313423154,1707330632234,-978.8151,0.00022699,2]
[313423155,1707330632243,-237.83008812,0.00022699,2]
[313423156,1707330632253,-402.05155775,0.00022787,2]
[313423157,1707330632262,-218.78708753,0.00022787,2]
[313423158,1707330632272,-58873.38256681,0.00022789,2]
[313423159,1707330632282,-663.15569218,0.00022794,2]
[313423160,1707330632291,-3343.1499168,0.00022797,2]
[313423161,1707330632300,-155.0,0.00022797,2]